fUST/lending_fUST_20241028
["ID","MTS","AMOUNT","RATE_DAILY","PERIOD"]
[340898426,1730045431961,-372.704903,0.00025921,2]
[340898428,1730045431974,-739.253491,0.00025989,2]
[340898430,1730045431983,-167.129795,0.0002618,2]
[340898432,1730045431992,-143.2189827,0.00026407,2]
[340898435,1730045432014,-23.9108123,0.00026407,2]
[340898437,1730045432024,-155.044,0.0002661,2]
[340898439,1730045432033,-167.129795,0.00026635,2]
[340898442,1730045432044,-247.80797411,0.00026674,2]
[340898531,1730045438341,-491.44551689,0.00026674,2]
[340898532,1730045438351,-201.98842544,0.00026762,2]
[340898533,1730045438360,-600.0,0.00026827,2]
[340898534,1730045438370,-167.129795,0.00026862,2]
[340898535,1730045438380,-300.0,0.00027068,2]
[340898536,1730045438389,-300.0,0.00027068,2]
[340898537,1730045438399,-167.129795,0.0002709,2]
[340898538,1730045438410,-600.0,0.00027107,2]
[340898539,1730045438420,-575.33826082,0.00027273,2]
[340898540,1730045438533,-1865.01687388,0.00027273,2]
[340898541,1730045438544,-617.52290011,0.00027277,2]
[340898542,1730045438554,-167.129795,0.00027317,2]
[340898543,1730045438565,-739.253491,0.00027359,2]
[340898544,1730045438575,-1263.94,0.00027367,3]
[340898545,1730045438587,-500.0,0.00027373,2]
[340898546,1730045438599,-500.0,0.00027373,2]
[340898547,1730045438609,-500.0,0.00027373,2]
[340898548,1730045438620,-557.07946615,0.00027373,2]
[340898549,1730045438631,-500.0,0.00027373,2]
[340898550,1730045438640,-500.0,0.00027373,2]
[340898551,1730045438651,-500.0,0.00027373,2]
[340898552,1730045438661,-500.0,0.00027373,2]
[340898553,1730045438671,-500.0,0.00027373,2]
[340898554,1730045438682,-500.0,0.00027373,2]
[340898555,1730045438693,-500.0,0.00027373,2]
[340898556,1730045438703,-500.0,0.00027373,2]
[340898557,1730045438713,-500.0,0.00027373,2]
[340898558,1730045438724,-500.7335449,0.00027373,2]
[340898559,1730045438735,-362.29948445,0.00027373,2]
[340898560,1730045438747,-500.0,0.00027373,2]
[340898561,1730045438756,-500.0,0.00027373,2]
[340898562,1730045438766,-500.0,0.00027373,2]
[340898563,1730045438775,-631.05291167,0.00027373,2]
[340898564,1730045438785,-500.0,0.00027373,2]
[340898565,1730045438795,-212.19718545,0.00027373,2]
[340898566,1730045438806,-500.0,0.00027373,2]
[340898567,1730045438816,-500.0,0.00027373,2]
[340898568,1730045438826,-172.48987956,0.00027373,2]
[340898569,1730045438837,-500.0,0.00027373,2]
[340898570,1730045438846,-364.32434665,0.00027373,2]
[340898571,1730045438856,-500.0,0.00027373,2]
[340898572,1730045438866,-500.0,0.00027373,2]
[340898573,1730045438877,-500.42251802,0.00027373,2]
[340898574,1730045438886,-201.15203102,0.00027373,2]
[340898575,1730045438896,-1053.29,0.00027377,3]
[340898576,1730045438906,-526.64,0.00027377,3]
[340898577,1730045438917,-263.32,0.00027377,3]
[340898578,1730045438927,-790.0,0.00027377,3]
[340898579,1730045438937,-186.50676467,0.00027386,2]
[340898580,1730045438947,-296.27664316,0.00027386,2]
[340898581,1730045439129,-600.0,0.00027386,2]
[340898582,1730045439139,-184309.946367,0.00027387,4]
[340898583,1730045439149,-45693.09579946,0.00027387,4]
[340898584,1730045439165,-16981.55622969,0.00027387,4]
[340898585,1730045439179,-2625.71421475,0.00027387,4]
[340898586,1730045439191,-917.47052803,0.00027387,4]
[340898587,1730045439203,-796.5,0.00027387,4]
[340898588,1730045439215,-338.88,0.00027387,4]
[340898655,1730045440127,-8157.0905158,0.00027091,2]
[340898657,1730045440137,-17770.43589555,0.00027387,4]
[340898659,1730045440149,-222696.74382369,0.00027387,4]
[340898737,1730045443065,-7679.47673899,0.00027387,4]
[340898738,1730045443119,-9507.85356407,0.00027387,4]
[340898744,1730045445996,-1323.28,0.00027387,4]
[340898745,1730045446050,-544.5,0.00027387,4]
[340898746,1730045446062,-5274.2469776,0.00027387,4]
[340898747,1730045513451,162.777777,0.00013973,2]
[340901141,1730045822996,-181231.27748817,0.00036208,30]
[340901142,1730045823023,-34967.74624014,0.00036208,30]
[340901144,1730045912053,614.81,0.00036208,30]
[340901145,1730045921098,-952.2607553,0.00026213,2]
[340901146,1730045921130,-279.528677,0.00026246,2]
[340901147,1730045921164,-167.129795,0.00026491,2]
[340901152,1730046050850,150.0,0.00024658,2]
[340901153,1730046055973,1401.0807727,0.00025,2]
[340901157,1730046076929,-500.0,0.00027397,30]
[340901158,1730046076954,-933.79,0.00027397,30]
[340901159,1730046076978,-500.0,0.00027397,30]
[340901160,1730046077002,-500.0,0.00027397,30]
[340901161,1730046077026,-361.56666987,0.00027397,30]
[340901162,1730046077050,-613.97,0.00027397,30]
[340901163,1730046077075,-500.0,0.00027397,30]
[340901164,1730046077098,-500.0,0.00027397,30]
[340901165,1730046077311,-791.2,0.00027397,30]
[340901166,1730046077336,-851.61,0.00027397,30]
[340901167,1730046077363,-500.0,0.00027397,30]
[340901168,1730046077387,-670.03,0.00027397,30]
[340901169,1730046077414,-500.0,0.00027397,30]
[340901170,1730046077439,-500.0,0.00027397,30]
[340901171,1730046077464,-500.0,0.00027397,30]
[340901172,1730046077489,-772.97,0.00027397,30]
[340901173,1730046077514,-766.48,0.00027397,30]
[340901174,1730046077540,-500.0,0.00027397,30]
[340901175,1730046077567,-500.0,0.00027397,30]
[340901176,1730046077591,-500.0,0.00027397,30]
[340901177,1730046077616,-339.80861272,0.00027397,30]
[340901178,1730046077640,-1608.87,0.00027397,30]
[340901179,1730046077665,-500.0,0.00027397,30]
[340901180,1730046077689,-1057.04,0.00027397,30]
[340901181,1730046077715,-500.0,0.00027397,30]
[340901182,1730046077743,-209.46680051,0.00027397,30]
[340901183,1730046077768,-615.34,0.00027397,30]
[340901184,1730046077791,-500.0,0.00027397,30]
[340901185,1730046077816,-549.76,0.00027397,30]
[340901186,1730046077840,-586.84,0.00027397,30]
[340901187,1730046077865,-957.27,0.00027397,30]
[340901188,1730046077889,-1261.42,0.00027397,30]
[340901189,1730046077914,-500.0,0.00027397,30]
[340901190,1730046077939,-500.0,0.00027397,30]
[340901191,1730046077964,-802.4,0.00027397,30]
[340901192,1730046077988,-816.41,0.00027397,30]
[340901193,1730046078013,-500.0,0.00027397,30]
[340901194,1730046078037,-500.0,0.00027397,30]
[340901195,1730046078062,-500.0,0.00027397,30]
[340901196,1730046078087,-500.0,0.00027397,30]
[340901197,1730046078112,-501.10592134,0.00027397,30]
[340901198,1730046078141,-500.0,0.00027397,30]
[340901199,1730046078168,-500.0,0.00027397,30]
[340901200,1730046078200,-500.0,0.00027397,30]
[340901201,1730046078225,-500.0,0.00027397,30]
[340901202,1730046078249,-500.0,0.00027397,30]
[340901203,1730046078273,-500.0,0.00027397,30]
[340901204,1730046078299,-500.0,0.00027397,30]
[340901205,1730046078324,-1724.82,0.00027397,30]
[340901206,1730046078349,-2470.19,0.00027397,30]
[340901207,1730046078375,-784.13,0.00027397,30]
[340901208,1730046078401,-1423.13,0.00027397,30]
[340901209,1730046078427,-1620.61,0.00027397,30]
[340901210,1730046078453,-500.0,0.00027397,30]
[340901211,1730046078477,-823.61,0.00027397,30]
[340901212,1730046078503,-500.0,0.00027397,30]
[340901213,1730046078527,-500.0,0.00027397,30]
[340901214,1730046078556,-500.0,0.00027397,30]
[340901215,1730046078582,-850.45,0.00027397,30]
[340901216,1730046078607,-860.0,0.00027397,30]
[340901217,1730046078638,-1238.43,0.00027397,30]
[340901218,1730046078665,-810.51,0.00027397,30]
[340901219,1730046078691,-615.0,0.00027397,30]
[340901220,1730046078716,-500.0,0.00027397,30]
[340901221,1730046078742,-500.0,0.00027397,30]
[340901222,1730046078768,-800.46,0.00027397,30]
[340901223,1730046078793,-165.51907612,0.00027397,30]
[340901224,1730046078817,-587.71285147,0.00027397,30]
[340901225,1730046078845,-1642.87,0.00027397,30]
[340901226,1730046078870,-501.4000691,0.00027397,30]
[340901227,1730046078897,-500.0,0.00027397,30]
[340901228,1730046078922,-500.0,0.00027397,30]
[340901229,1730046078948,-500.0,0.00027397,30]
[340901230,1730046078973,-518.47,0.00027397,30]
[340901231,1730046078998,-1437.1,0.00027397,30]
[340901232,1730046079023,-500.0,0.00027397,30]
[340901233,1730046079046,-500.0,0.00027397,30]
[340901234,1730046079071,-500.0,0.00027397,30]
[340901235,1730046079094,-500.0,0.00027397,30]
[340901236,1730046079119,-488.15446981,0.00027397,30]
[340901237,1730046079147,-500.0,0.00027397,30]
[340901238,1730046079174,-500.0,0.00027397,30]
[340901239,1730046079202,-1523.57,0.00027397,30]
[340901240,1730046079226,-500.0,0.00027397,30]
[340901241,1730046079251,-500.0,0.00027397,30]
[340901242,1730046079277,-416.40673772,0.00027397,30]
[340901243,1730046079301,-2893.61,0.00027397,30]
[340901244,1730046079324,-2303.95,0.00027397,30]
[340901245,1730046079348,-798.22,0.00027397,30]
[340901246,1730046079373,-771.86,0.00027397,30]
[340901247,1730046079399,-500.0,0.00027397,30]
[340901248,1730046079425,-2509.65,0.00027397,30]
[340901249,1730046079449,-500.0,0.00027397,30]
[340901250,1730046079474,-1092.14,0.00027397,30]
[340901251,1730046079499,-500.0,0.00027397,30]
[340901252,1730046079525,-500.0,0.00027397,30]
[340901253,1730046079550,-500.0,0.00027397,30]
[340901254,1730046079575,-607.3175551,0.00027397,30]
[340901255,1730046079600,-500.0,0.00027397,30]
[340901256,1730046079624,-769.7,0.00027397,30]
[340901257,1730046079651,-867.87,0.00027397,30]
[340901258,1730046079676,-500.0,0.00027397,30]
[340901259,1730046079700,-392.39207097,0.00027397,30]
[340901260,1730046079724,-617.82,0.00027397,30]
[340901261,1730046079748,-626.06,0.00027397,30]
[340901262,1730046079771,-352.22746688,0.00027397,30]
[340901263,1730046079795,-500.0,0.00027397,30]
[340901264,1730046079819,-615.26,0.00027397,30]
[340901265,1730046079843,-641.35,0.00027397,30]
[340901266,1730046079867,-500.0,0.00027397,30]
[340901267,1730046079890,-681.05,0.00027397,30]
[340901268,1730046079917,-500.0,0.00027397,30]
[340901269,1730046080090,-507.28,0.00027397,30]
[340901270,1730046080114,-500.0,0.00027397,30]
[340901271,1730046080141,-500.0,0.00027397,30]
[340901272,1730046080165,-2079.27,0.00027397,30]
[340901273,1730046080193,-882.32,0.00027397,30]
[340901274,1730046080218,-500.0,0.00027397,30]
[340901275,1730046080243,-742.18,0.00027397,30]
[340901276,1730046080268,-1041.08,0.00027397,30]
[340901277,1730046080294,-500.0,0.00027397,30]
[340901278,1730046080318,-1211.33,0.00027397,30]
[340901279,1730046080341,-500.0,0.00027397,30]
[340901280,1730046080367,-504.85574139,0.00027397,30]
[340901281,1730046080396,-960.14,0.00027397,30]
[340901282,1730046080423,-500.0,0.00027397,30]
[340901283,1730046080448,-702.7,0.00027397,30]
[340901284,1730046080472,-551.57,0.00027397,30]
[340901285,1730046080496,-947.66,0.00027397,30]
[340901286,1730046080521,-500.0,0.00027397,30]
[340901287,1730046080548,-513.81191837,0.00027397,30]
[340901288,1730046080574,-726.92,0.00027397,30]
[340901289,1730046080600,-500.0,0.00027397,30]
[340901290,1730046080626,-570.26,0.00027397,30]
[340901291,1730046080655,-1041.16,0.00027397,30]
[340901292,1730046080682,-909.24,0.00027397,30]
[340901293,1730046080707,-500.0,0.00027397,30]
[340901294,1730046080732,-712.81,0.00027397,30]
[340901295,1730046080759,-1412.27,0.00027397,30]
[340901296,1730046080785,-1788.69,0.00027397,30]
[340901297,1730046080811,-327.09874784,0.00027397,30]
[340901298,1730046080835,-720.31,0.00027397,30]
[340901299,1730046080863,-945.4,0.00027397,30]
[340901300,1730046080889,-500.0,0.00027397,30]
[340901301,1730046080914,-500.0,0.00027397,30]
[340901302,1730046080937,-653.89,0.00027397,30]
[340901303,1730046080961,-1548.3,0.00027397,30]
[340901304,1730046080985,-500.0,0.00027397,30]
[340901305,1730046081008,-500.0,0.00027397,30]
[340901306,1730046081032,-500.0,0.00027397,30]
[340901307,1730046081055,-1846.63,0.00027397,30]
[340901308,1730046081079,-511.57,0.00027397,30]
[340901309,1730046081102,-1161.98,0.00027397,30]
[340901310,1730046081126,-500.0,0.00027397,30]
[340901311,1730046081150,-500.0,0.00027397,30]
[340901312,1730046081174,-808.46,0.00027397,30]
[340901313,1730046081200,-897.0,0.00027397,30]
[340901314,1730046081223,-1191.74,0.00027397,30]
[340901315,1730046081247,-777.92,0.00027397,30]
[340901316,1730046081270,-500.0,0.00027397,30]
[340901317,1730046081294,-500.0,0.00027397,30]
[340901318,1730046081318,-192.37988942,0.00027397,30]
[340901319,1730046081342,-2328.28,0.00027397,30]
[340901320,1730046081365,-1055.98,0.00027397,30]
[340901321,1730046081389,-500.0,0.00027397,30]
[340901322,1730046081414,-500.0,0.00027397,30]
[340901323,1730046081439,-1801.73,0.00027397,30]
[340901324,1730046081463,-669.35,0.00027397,30]
[340901325,1730046081490,-3087.86,0.00027397,30]
[340901326,1730046081515,-951.03,0.00027397,30]
[340901327,1730046081540,-1329.48,0.00027397,30]
[340901328,1730046081565,-649.77,0.00027397,30]
[340901329,1730046081589,-513.71,0.00027397,30]
[340901330,1730046081612,-500.0,0.00027397,30]
[340901331,1730046081636,-500.0,0.00027397,30]
[340901332,1730046081662,-1082.45,0.00027397,30]
[340901333,1730046081687,-2807.81,0.00027397,30]
[340901334,1730046081711,-1066.42,0.00027397,30]
[340901335,1730046081736,-273.28810747,0.00027397,30]
[340901336,1730046081761,-383.21283251,0.00027397,30]
[340901337,1730046081788,-500.0,0.00027397,30]
[340901338,1730046081812,-500.0,0.00027397,30]
[340901339,1730046081837,-927.22,0.00027397,30]
[340901340,1730046081863,-5482.08,0.00027397,30]
[340901341,1730046081888,-562.94,0.00027397,30]
[340901342,1730046081915,-1006.89,0.00027397,30]
[340901343,1730046081939,-500.0,0.00027397,30]
[340901344,1730046081963,-556.81270412,0.00027397,30]
[340901345,1730046081988,-1369.37,0.00027397,30]
[340901346,1730046082012,-814.09,0.00027397,30]
[340901347,1730046082036,-576.35,0.00027397,30]
[340901348,1730046082063,-500.0,0.00027397,30]
[340901349,1730046082088,-1205.44,0.00027397,30]
[340901350,1730046082112,-401.86791051,0.00027397,30]
[340901351,1730046082140,-2966.53,0.00027397,30]
[340901352,1730046082168,-613.22360793,0.00027397,30]
[340901353,1730046082196,-580.16,0.00027397,30]
[340901354,1730046082221,-2102.05,0.00027397,30]
[340901355,1730046082249,-908.39,0.00027397,30]
[340901356,1730046082275,-500.0,0.00027397,30]
[340901357,1730046082301,-500.0,0.00027397,30]
[340901358,1730046082325,-500.0,0.00027397,30]
[340901359,1730046082348,-258.30992907,0.00027397,30]
[340901360,1730046082371,-500.0,0.00027397,30]
[340901361,1730046082396,-433.0663011,0.00027397,30]
[340901362,1730046082420,-9951.14,0.00027397,30]
[340901363,1730046082445,-1621.81,0.00027397,30]
[340901364,1730046082469,-616.66139548,0.00027397,30]
[340901365,1730046082492,-931.23,0.00027397,30]
[340901366,1730046082516,-500.0,0.00027397,30]
[340901367,1730046082540,-500.0,0.00027397,30]
[340901368,1730046082564,-1297.12,0.00027397,30]
[340901369,1730046082587,-500.0,0.00027397,30]
[340901370,1730046082611,-500.0,0.00027397,30]
[340901371,1730046082636,-848.89,0.00027397,30]
[340901372,1730046082661,-1653.1,0.00027397,30]
[340901373,1730046082686,-649.15423477,0.00027397,30]
[340901374,1730046082710,-1793.09,0.00027397,30]
[340901375,1730046082890,-916.19,0.00027397,30]
[340901376,1730046082918,-2431.6,0.00027397,30]
[340901377,1730046082944,-1836.0,0.00027397,30]
[340901378,1730046082969,-873.66,0.00027397,30]
[340901379,1730046082994,-500.0,0.00027397,30]
[340901380,1730046083019,-620.5,0.00027397,30]
[340901381,1730046083043,-1667.35,0.00027397,30]
[340901382,1730046083068,-1075.5,0.00027397,30]
[340901383,1730046083093,-500.0,0.00027397,30]
[340901384,1730046083119,-1451.07,0.00027397,30]
[340901385,1730046083145,-1954.49,0.00027397,30]
[340901386,1730046083170,-6095.81,0.00027397,30]
[340901387,1730046083196,-500.0,0.00027397,30]
[340901388,1730046083221,-576.3982421,0.00027397,30]
[340901389,1730046083244,-698.69,0.00027397,30]
[340901390,1730046083270,-778.1,0.00027397,30]
[340901391,1730046083296,-1654.97,0.00027397,30]
[340901392,1730046083322,-2746.61,0.00027397,30]
[340901393,1730046083347,-1229.42,0.00027397,30]
[340901394,1730046083371,-500.0,0.00027397,30]
[340901395,1730046083396,-1395.07,0.00027397,30]
[340901396,1730046083421,-500.0,0.00027397,30]
[340901397,1730046083446,-897.79,0.00027397,30]
[340901398,1730046083472,-527.1527577,0.00027397,30]
[340901399,1730046083496,-502.94476848,0.00027397,30]
[340901400,1730046083522,-500.0,0.00027397,30]
[340901401,1730046083548,-557.31,0.00027397,30]
[340901402,1730046083577,-719.28,0.00027397,30]
[340901403,1730046083602,-586.29622023,0.00027397,30]
[340901404,1730046083631,-500.0,0.00027397,30]
[340901405,1730046083660,-722.3,0.00027397,30]
[340901406,1730046083685,-500.0,0.00027397,30]
[340901407,1730046083710,-500.0,0.00027397,30]
[340901408,1730046083737,-31392.8,0.00027397,30]
[340901409,1730046083764,-500.0,0.00027397,30]
[340901410,1730046083789,-615.71,0.00027397,30]
[340901411,1730046083814,-605.22359845,0.00027397,30]
[340901412,1730046083839,-228.3507577,0.00027397,30]
[340901413,1730046083864,-1645.21,0.00027397,30]
[340901414,1730046083890,-585.75191908,0.00027397,30]
[340901415,1730046083916,-500.0,0.00027397,30]
[340901416,1730046083941,-709.72,0.00027397,30]
[340901417,1730046083969,-842.67,0.00027397,30]
[340901418,1730046083994,-569.57023658,0.00027397,30]
[340901419,1730046084019,-3073.17,0.00027397,30]
[340901420,1730046084044,-1050.62,0.00027397,30]
[340901421,1730046084071,-500.0,0.00027397,30]
[340901422,1730046084098,-1277.77,0.00027397,30]
[340901423,1730046084123,-659.67,0.00027397,30]
[340901424,1730046084149,-810.39,0.00027397,30]
[340901425,1730046084173,-593.72,0.00027397,30]
[340901426,1730046084206,-795.67,0.00027397,30]
[340901427,1730046084231,-500.0,0.00027397,30]
[340901428,1730046084255,-500.0,0.00027397,30]
[340901429,1730046084281,-455.64936693,0.00027397,30]
[340901430,1730046084306,-1081.77,0.00027397,30]
[340901431,1730046084331,-500.0,0.00027397,30]
[340901432,1730046084357,-1141.22,0.00027397,30]
[340901433,1730046084382,-500.0,0.00027397,30]
[340901434,1730046084408,-798.2,0.00027397,30]
[340901435,1730046084432,-632.44,0.00027397,30]
[340901436,1730046084455,-500.0,0.00027397,30]
[340901437,1730046084483,-500.0,0.00027397,30]
[340901438,1730046084511,-2219.19,0.00027397,30]
[340901439,1730046084535,-500.0,0.00027397,30]
[340901440,1730046084558,-717.21,0.00027397,30]
[340901441,1730046084583,-500.0,0.00027397,30]
[340901442,1730046084609,-500.0,0.00027397,30]
[340901443,1730046084634,-500.0,0.00027397,30]
[340901444,1730046084659,-500.0,0.00027397,30]
[340901445,1730046084685,-1620.78,0.00027397,30]
[340901446,1730046084713,-500.0,0.00027397,30]
[340901447,1730046084740,-1054.63,0.00027397,30]
[340901448,1730046084765,-984.29,0.00027397,30]
[340901449,1730046084791,-1099.54,0.00027397,30]
[340901450,1730046084820,-1257.44,0.00027397,30]
[340901451,1730046084855,-500.0,0.00027397,30]
[340901452,1730046084892,-793.9,0.00027397,30]
[340901453,1730046084923,-500.0,0.00027397,30]
[340901454,1730046084957,-500.0,0.00027397,30]
[340901455,1730046084992,-4538.49,0.00027397,30]
[340901456,1730046085027,-500.0,0.00027397,30]
[340901457,1730046085061,-1232.97,0.00027397,30]
[340901458,1730046085091,-3153.74,0.00027397,30]
[340901459,1730046085130,-500.0,0.00027671,30]
[340901460,1730046085163,-933.79,0.00027671,30]
[340901461,1730046085193,-500.0,0.00027671,30]
[340901462,1730046085223,-500.0,0.00027671,30]
[340901463,1730046085254,-613.97,0.00027671,30]
[340901464,1730046085286,-500.0,0.00027671,30]
[340901465,1730046085319,-500.0,0.00027671,30]
[340901466,1730046085349,-791.2,0.00027671,30]
[340901467,1730046085379,-851.61,0.00027671,30]
[340901468,1730046085410,-500.0,0.00027671,30]
[340901469,1730046085444,-670.03,0.00027671,30]
[340901470,1730046085473,-500.0,0.00027671,30]
[340901471,1730046085504,-535.24282056,0.00027671,30]
[340901472,1730046085536,-500.0,0.00027671,30]
[340901473,1730046085564,-772.97,0.00027671,30]
[340901474,1730046085593,-766.48,0.00027671,30]
[340901475,1730046085621,-500.0,0.00027671,30]
[340901476,1730046085654,-500.0,0.00027671,30]
[340901477,1730046085683,-500.0,0.00027671,30]
[340901478,1730046085713,-1608.87,0.00027671,30]
[340901479,1730046085741,-500.0,0.00027671,30]
[340901480,1730046085772,-1057.04,0.00027671,30]
[340901481,1730046085802,-500.0,0.00027671,30]
[340901482,1730046085831,-615.34,0.00027671,30]
[340901483,1730046085862,-500.0,0.00027671,30]
[340901484,1730046085890,-549.76,0.00027671,30]
[340901485,1730046085921,-586.84,0.00027671,30]
[340901486,1730046085950,-957.27,0.00027671,30]
[340901487,1730046085979,-1261.42,0.00027671,30]
[340901488,1730046086008,-500.0,0.00027671,30]
[340901489,1730046086039,-500.0,0.00027671,30]
[340901490,1730046086070,-802.4,0.00027671,30]
[340901491,1730046086101,-816.41,0.00027671,30]
[340901492,1730046086130,-500.0,0.00027671,30]
[340901493,1730046086162,-500.0,0.00027671,30]
[340901494,1730046086196,-500.0,0.00027671,30]
[340901495,1730046086231,-500.0,0.00027671,30]
[340901496,1730046086266,-558.49825488,0.00027671,30]
[340901497,1730046086297,-500.0,0.00027671,30]
[340901498,1730046086328,-500.0,0.00027671,30]
[340901499,1730046086363,-500.0,0.00027671,30]
[340901500,1730046086395,-500.0,0.00027671,30]
[340901501,1730046086428,-500.0,0.00027671,30]
[340901502,1730046086459,-500.0,0.00027671,30]
[340901503,1730046086490,-1724.82,0.00027671,30]
[340901504,1730046086522,-2470.19,0.00027671,30]
[340901505,1730046086552,-784.13,0.00027671,30]
[340901506,1730046086583,-1423.13,0.00027671,30]
[340901507,1730046086615,-1620.61,0.00027671,30]
[340901508,1730046086645,-500.0,0.00027671,30]
[340901509,1730046086678,-823.61,0.00027671,30]
[340901510,1730046086711,-500.0,0.00027671,30]
[340901511,1730046086744,-178.02218242,0.00027671,30]
[340901512,1730046086774,-850.45,0.00027671,30]
[340901513,1730046086803,-860.0,0.00027671,30]
[340901514,1730046086833,-1238.43,0.00027671,30]
[340901515,1730046086863,-810.51,0.00027671,30]
[340901516,1730046086891,-615.0,0.00027671,30]
[340901517,1730046086923,-308.49170836,0.00027671,30]
[340901518,1730046086952,-500.0,0.00027671,30]
[340901519,1730046086979,-800.46,0.00027671,30]
[340901520,1730046087005,-1642.87,0.00027671,30]
[340901521,1730046087031,-500.0,0.00027671,30]
[340901522,1730046087340,-485.66355511,0.00027671,30]
[340901523,1730046087367,-500.0,0.00027671,30]
[340901524,1730046087392,-518.47,0.00027671,30]
[340901525,1730046087421,-1437.1,0.00027671,30]
[340901526,1730046087448,-500.0,0.00027671,30]
[340901527,1730046087473,-500.0,0.00027671,30]
[340901528,1730046087501,-500.0,0.00027671,30]
[340901529,1730046087528,-500.0,0.00027671,30]
[340901530,1730046087553,-500.0,0.00027671,30]
[340901531,1730046087579,-1523.57,0.00027671,30]
[340901532,1730046087604,-500.0,0.00027671,30]
[340901533,1730046087630,-500.0,0.00027671,30]
[340901534,1730046087659,-2893.61,0.00027671,30]
[340901535,1730046087685,-2303.95,0.00027671,30]
[340901536,1730046087710,-798.22,0.00027671,30]
[340901537,1730046087736,-771.86,0.00027671,30]
[340901538,1730046087760,-500.0,0.00027671,30]
[340901539,1730046087785,-2509.65,0.00027671,30]
[340901540,1730046087811,-500.0,0.00027671,30]
[340901541,1730046087836,-1092.14,0.00027671,30]
[340901542,1730046087861,-500.0,0.00027671,30]
[340901543,1730046087886,-273.32384986,0.00027671,30]
[340901544,1730046087912,-500.0,0.00027671,30]
[340901545,1730046087938,-769.7,0.00027671,30]
[340901546,1730046087963,-867.87,0.00027671,30]
[340901547,1730046087988,-500.0,0.00027671,30]
[340901548,1730046088013,-617.82,0.00027671,30]
[340901549,1730046088039,-626.06,0.00027671,30]
[340901550,1730046088065,-615.26,0.00027671,30]
[340901551,1730046088091,-641.35,0.00027671,30]
[340901552,1730046088121,-500.0,0.00027671,30]
[340901553,1730046088146,-681.05,0.00027671,30]
[340901554,1730046088174,-500.0,0.00027671,30]
[340901555,1730046088203,-507.28,0.00027671,30]
[340901556,1730046088228,-500.0,0.00027671,30]
[340901557,1730046088253,-500.0,0.00027671,30]
[340901558,1730046088280,-2079.27,0.00027671,30]
[340901559,1730046088305,-882.32,0.00027671,30]
[340901560,1730046088329,-500.0,0.00027671,30]
[340901561,1730046088354,-742.18,0.00027671,30]
[340901562,1730046088379,-1041.08,0.00027671,30]
[340901563,1730046088406,-500.0,0.00027671,30]
[340901564,1730046088432,-1211.33,0.00027671,30]
[340901565,1730046088457,-500.0,0.00027671,30]
[340901566,1730046088482,-960.14,0.00027671,30]
[340901567,1730046088507,-500.0,0.00027671,30]
[340901568,1730046088532,-702.7,0.00027671,30]
[340901569,1730046088557,-551.57,0.00027671,30]
[340901570,1730046088584,-947.66,0.00027671,30]
[340901571,1730046088608,-481.3643831,0.00027671,30]
[340901572,1730046088633,-726.92,0.00027671,30]
[340901573,1730046088659,-500.0,0.00027671,30]